Cogmind - Beta 17 @@@ ROGUE MODE // 2026.07.18 @ 17:56:04 Player: winnking222 Result: Destroyed by 9J-M7U(j) with Overtuned Pulse Rifle Performance ------------- Evolutions (0) 0 Regions Visited (4) 800 Robots Destroyed (35) 175 Value Destroyed (836) 836 Prototype IDs (20) 400 Alien Tech Used (0) 0 Bonus (7750) 7750 TOTAL SCORE: 9961 Bonus ------- Follower Combat Kills 300 Prayed to X0-1V1 5000 Major X0-1V1 Interference 2150 Registered with UFD 300 Cogmind --------- Core Integrity 0/490 Matter 551/1000 Energy 37/100 System Corruption 0% Temperature Warning (313) Movement Core (50) Location -7/Scraptown Parts ------- > --- POWER (1) -------- (None) > --- PROPULSION (1) --- (None) > --- UTILITY (3) ------ (None) > --- WEAPON (2) ------- (None) > --- INVENTORY (5) ---- Meta Core Cesium-ion Thruster Makeshift System Shield Mini Grenade Launcher Makeshift Hammer Peak State ------------ > --- POWER ------------ Reinforced Ion Engine > --- PROPULSION ------- Armored Wheel > --- UTILITY ---------- Large Storage Unit Self-contained Transmogrifier X0-1V1's Piety Tracker > --- WEAPON ----------- Spread Laser Subdweller Laser Subdweller Beam Cannon Subdweller Machine Gun Katana > --- INVENTORY -------- Meta Core Spiked Treads Subdweller Monowheel Subdweller Monowheel Medium Storage Unit Scrap Shield Subdweller Beam Cannon Subdweller Machine Gun Subdweller Machine Gun Subdweller Machine Gun Subdweller Machine Gun Grenade Launcher Makeshift Hammer [Rating: 41] Favorites ----------- Power Light Ion Engine Engine Light Ion Engine Power Core Nuclear Core Propulsion Light Treads Treads Light Treads Leg Aluminum Leg Wheel Compact Wheel Hover Unit Improved Gravmag System Flight Unit Surge Thruster Utility X0-1V1's Piety Tracker Device X0-1V1's Piety Tracker Storage Large Storage Unit Protection Improved Light Armor Plating Weapon Light Assault Rifle Energy Gun Medium Laser Energy Cannon Subdweller Beam Cannon Ballistic Gun Light Assault Rifle Ballistic Cannon Magnetic Acceleration Cannon Special Weapon CPS Tube Impact Weapon Flail Slashing Weapon Katana Build | -11 -10 -10 -10 -7 ------- Run | Yrd Mat Min Sub Scr Slots Evolved . | . . . . . Power . | . . . . . Propulsion . | . . . . . Utility . | . . . . . Weapon . | . . . . . Parts Attached 45 | 7 8 . 25 5 Power 4 | 1 1 . 2 . Engine 4 | 1 1 . 2 . Core . | . . . . . Reactor . | . . . . . Propulsion 13 | 2 2 . 8 1 Treads 4 | 2 . . 2 . Leg 2 | . 2 . . . Wheel 7 | . . . 6 1 Hover . | . . . . . Flight . | . . . . . Utility 12 | 2 3 . 4 3 Device 6 | 1 1 . 3 1 Storage 4 | 1 2 . . 1 Processor . | . . . . . Hackware . | . . . . . Protection 2 | . . . 1 1 Artifact . | . . . . . Weapon 16 | 2 2 . 11 1 Energy Gun 4 | . 1 . 3 . Energy Cannon 1 | . . . 1 . Ballistic Gun 8 | 2 1 . 5 . Ballistic Cannon 2 | . . . 2 . Launcher . | . . . . . Special Weapon . | . . . . . Impact Weapon 1 | . . . . 1 Slashing Weapon . | . . . . . Piercing Weapon . | . . . . . Special Melee Weapon . | . . . . . Unidentified Prototypes 2 | . 1 . 1 . Corrupted Parts 1 | . . . 1 . System Corruption 2 | . . . 2 . Parts Lost 17 | . 4 . 10 3 Power 2 | . 1 . 1 . Propulsion 6 | . 1 . 4 1 Utility 3 | . 1 . . 2 Weapon 6 | . 1 . 5 . Highest Loss Streak 4 | . 3 . 4 3 To Critical Strikes . | . . . . . Average Backups 11 | 5 10 12 13 10 Power . | . . . . . Propulsion 2 | 3 3 3 2 1 Utility 3 | . 3 4 3 2 Weapon 5 | 1 3 5 6 5 Tool/Special . | . . . . . Unused Backups 21 | . 1 . 9 11 Power 2 | . . . 2 . Propulsion 2 | . . . 1 1 Utility 4 | . . . 2 2 Weapon 12 | . 1 . 4 7 Tool/Special 1 | . . . . 1 Average Slot Usage (%) 83 | . 98 100 90 67 Engine 10 | . 14 14 8 9 Treads 10 | . 23 . 11 4 Leg 2 | . 4 28 2 . Wheel 5 | . . . 10 4 Flight 1 | . . . . 3 Device 20 | . 12 14 19 25 Storage 12 | . 14 14 13 11 Energy Gun 3 | . 4 14 4 . Ballistic Gun 8 | . 23 14 9 . Ballistic Cannon 2 | . . . 7 . Slashing Weapon 2 | . . . . 4 Peak Build Rating 41 | 7 20 20 41 39 Average Rating 24 | 5 12 20 25 31 On Entrance 17 | . 7 20 20 41 Avg Prop Armor Cover (%) 11 | . . . 11 . Naked Turns 3 | . . . . 3 Heaviest Build 53 | 12 29 29 52 53 Greatest Support 40 | 40 40 20 40 28 Greatest Overweight (x) 12 | . 1 1 4 12 Average Overweight (x) 1 | . . 1 1 1 Largest Inventory Capacity 20 | 8 15 15 15 20 Average Capacity 15 | 7 14 15 15 17 Most Carried 18 | 7 15 13 15 18 Average Carried 12 | 5 10 12 14 11 Final Capacity 15 | 8 15 15 15 5 Final Carried 14 | 7 12 13 14 5 Transmogrified Parts 21 | . . . 6 15 Integrity Recovered 189 | . . . 47 142 Class Distribution -------------------- 95% | Mutant 3% | Scavenger-Mutant Dominant Class ---------------- Mutant | -10/Materials Mutant | -10/Mines Mutant | -10/Subcaves Mutant | -7/Scraptown Resources | -11 -10 -10 -10 -7 ----------- Run | Yrd Mat Min Sub Scr Matter Collected 1755 | 306 157 58 791 443 Remotely . | . . . . . Salvage Created 912 | 110 371 . 431 . Parts 72 | 11 24 . 37 . Haulers Intercepted . | . . . . . Recyclers Shooed . | . . . . . Parts Field Recycled . | . . . . . Retrieved Matter . | . . . . . Parts Self-Destructed 23 | . . . 23 . Prevented . | . . . . . Parts Restored . | . . . . . Kills | -11 -10 -10 -10 -7 ------- Run | Yrd Mat Min Sub Scr Combat Hostiles Destroyed 31 | . 12 . 19 . Melee 1 | . . . 1 . Guns 24 | . 12 . 12 . Cannons 5 | . . . 5 . Classes Destroyed 7 | 3 2 . 2 . Worker 1 | 1 . . . . Tunneler 2 | 2 . . . . Recycler 1 | 1 . . . . Swarmer 13 | . 5 . 8 . Grunt 11 | . 7 . 4 . Sentry 1 | . . . 1 . Subdweller 6 | . . . 6 . Best Kill Streak 4 | 2 3 . 4 . Combat Bots Only 4 | . 3 . 4 . Max Kills in Single Turn 2 | 1 2 . 1 . Gunslinging 1 | . 1 . . . Exploded . | . . . . . Melee 1 | . . . 1 . Uniques/NPCs Destroyed . | . . . . . Combat | -11 -10 -10 -10 -7 -------- Run | Yrd Mat Min Sub Scr Hostile Shots Fired 299 | . 97 . 129 73 Missed 81 | . 28 . 23 30 Hits 218 | . 69 . 106 43 Melee 1 | . . . . 1 Projectile 217 | . 69 . 106 42 Critical Strikes 5 | . . . 3 2 Damage Taken 3135 | . 741 . 1717 677 Core 1042 | . 171 . 383 488 Absorbed by Shields . | . . . . . Ignored by Resistances 6 | . . . 6 . Core Remaining (%) 100 | 100 . . . . Volleys Fired 117 | 9 46 . 62 . Largest 3 | 2 2 . 3 . Hottest 155 | 40 70 . 155 . Shots Fired 222 | 18 93 . 111 . Gun 192 | 18 93 . 81 . Cannon 30 | . . . 30 . Launcher . | . . . . . Special . | . . . . . Kinetic 165 | 18 72 . 75 . Thermal 47 | . 21 . 26 . Explosive . | . . . . . Electromagnetic 10 | . . . 10 . Robot Hit Streak 17 | 4 9 . 17 . Robot Miss Streak 5 | 2 3 . 5 . Penetration Max . | . . . . . Secondary Targets 4 | . 2 . 2 . Max Gunslinging Chain 1 | . 1 . 1 . Shots Hit Robots 144 | 10 63 . 71 . Core Hits 58 | 6 23 . 29 . Critical Kills 3 | . 1 . 2 . Critical Parts Destroyed 1 | . . . 1 . Critical Strikes 6 | . 2 . 4 . Burn 1 | . 1 . . . Destroy 3 | . 1 . 2 . Smash 2 | . . . 2 . Melee Attacks 7 | . . . 7 . Impact 7 | . . . 7 . Slashing . | . . . . . Piercing . | . . . . . Sneak Attacks . | . . . . . Combat Hostiles . | . . . . . Follow-up Attacks . | . . . . . Damage Inflicted 2414 | 124 743 . 1547 . Guns 1782 | 124 743 . 915 . Cannons 443 | . . . 443 . Explosions . | . . . . . Melee 189 | . . . 189 . Ramming . | . . . . . Kinetic 1683 | 124 508 . 1051 . Thermal 441 | . 235 . 206 . Explosive . | . . . . . Electromagnetic 101 | . . . 101 . Impact 189 | . . . 189 . Slashing . | . . . . . Piercing . | . . . . . Highest Corruption 14 | . 1 1 14 . Average Corruption 8 | . 1 1 10 . Corruption Purged . | . . . . . Corruption Blocked . | . . . . . Effects 53 | . 3 1 49 . Message Errors 6 | . . . 6 . Matter Fused 18 | . 2 . 16 . Heat Flow Errors 5 | . . . 5 . Energy Discharges 10 | . . 1 9 . Parts Fused 1 | . . . 1 . Data Loss (minor) 4 | . . . 4 . Data Loss (major) 2 | . . . 2 . Misfires 3 | . 1 . 2 . Alerts 3 | . . . 3 . Misdirections 1 | . . . 1 . Overload Shots . | . . . . . Overflow Damage 50 | . . . 50 . Projectiles . | . . . . . Explosions . | . . . . . Melee 50 | . . . 50 . Knockbacks 6 | . . . 6 . Impact 2 | . . . 2 . Kinetic 3 | . . . 3 . Secondary 1 | . . . 1 . Self-Inflicted Damage . | . . . . . Shots . | . . . . . Rammed 1 | . 1 . . . Targets Rammed 1 | . 1 . . . Kicked . | . . . . . Crushed . | . . . . . Highest Temperature 301 | . 225 . 163 301 Average Temperature 73 | . 78 . 57 301 Received Heat Transfer 855 | . 348 . 387 120 Siege Activations . | . . . . . Martial Activations . | . . . . . Shielding Activations . | . . . . . Robots Disrupted . | . . . . . Combat Hostiles . | . . . . . Robots Corrupted 1 | . . . 1 . Combat Hostiles 1 | . . . 1 . Parts Fried 1 | . . . 1 . Impact Corruptions 2 | . . . 2 . Robots Melted . | . . . . . Combat Hostiles . | . . . . . Parts Melted 7 | . 4 . 3 . Heat Transferred 1076 | . 777 . 299 . Parts Sabotaged . | . . . . . Parts Stolen . | . . . . . Parts Stripped . | . . . . . Power Chain Reactions . | . . . . . Alert | -11 -10 -10 -10 -7 ------- Run | Yrd Mat Min Sub Scr Maximum Alert Level . | . . . . . Low Security (%) 100 | 100 100 100 . . Level 1 . | . . . . . Level 2 . | . . . . . Level 3 . | . . . . . Level 4 . | . . . . . Level 5 . | . . . . . High Security . | . . . . . Max Security . | . . . . . Peak Influence 105 | 10 105 1 . . Initial 1 | . . 1 . . Average 28 | 1 37 . . . Influence Increases 626 | 20 324 . 282 . Destroy 0b10 Robot/C 520 | . 240 . 280 . Destroy 0b10 Robot/NC 20 | 20 . . . . Destroy Leader 40 | . 40 . . . Allied During Kill 2 | . . . 2 . Successful Hack 14 | . 14 . . . Lose Combat Pursuer 30 | . 30 . . . Influence Decreases 626 | 20 319 5 215 67 Entered New Map 71 | . . 4 . 67 Time Decay 485 | 20 279 1 185 . Lost Part 50 | . 40 . 10 . Lost Ally 20 | . . . 20 . Squads Dispatched 2 | . 2 . . . Investigation 1 | . 1 . . . Extermination . | . . . . . Reinforcement 1 | . 1 . . . Assault . | . . . . . Garrison . | . . . . . Intercept . | . . . . . Searches Triggered . | . . . . . Construction Impeded . | . . . . . Haulers Reinforced . | . . . . . Active Scanning Responses . | . . . . . Cargo Convoy Interrupts . | . . . . . Stealth | -11 -10 -10 -10 -7 --------- Run | Yrd Mat Min Sub Scr Distress Signals 4 | . 4 . . . Communications Jammed . | . . . . . Distress Signals . | . . . . . Times Spotted 80 | . 27 . 25 28 Peak Tracking Total 31 | . 6 . 4 31 Tactical Retreats 3 | . 2 . . 1 Traps | -11 -10 -10 -10 -7 ------- Run | Yrd Mat Min Sub Scr Traps Triggered 2 | . . . 2 . Indirectly . | . . . . . Trap Hack Attempts . | . . . . . Triggered . | . . . . . Disarmed . | . . . . . Reprogrammed . | . . . . . Reused . | . . . . . Traps Extracted . | . . . . . Installed . | . . . . . Triggered . | . . . . . Machines | -11 -10 -10 -10 -7 ---------- Run | Yrd Mat Min Sub Scr Machines Disabled 2 | . . . . 2 Max in Single Turn . | . . . . . Machines Repaired . | . . . . . Machines Dismantled . | . . . . . Machines Sabotaged . | . . . . . Overloaded Fab Kills . | . . . . . Hacking | -11 -10 -10 -10 -7 --------- Run | Yrd Mat Min Sub Scr Machines Accessed 10 | . 6 . 2 2 Terminals 6 | . 6 . . . Fabricators . | . . . . . Repair Stations . | . . . . . Recycling Units . | . . . . . Scanalyzers . | . . . . . Garrison Access . | . . . . . Total Hacks 40 | . 13 . 5 22 Successful 36 | . 9 . 5 22 Failed 4 | . 4 . . . Catastrophic 2 | . 2 . . . Database Lockouts . | . . . . . Manual 12 | . 12 . . . Terminals 13 | . 13 . . . Fabricators . | . . . . . Repair Stations . | . . . . . Recycling Units . | . . . . . Scanalyzers . | . . . . . Garrison Access . | . . . . . Terminal Hacks 28 | . 1 . 5 22 Record 26 | . . . 4 22 Hauler Manifests 1 | . 1 . . . Proto ID Catalog 1 | . . . 1 . Fabricator Hacks . | . . . . . Repair Station Hacks . | . . . . . Recycling Unit Hacks . | . . . . . Scanalyzer . | . . . . . Garrison Access Hacks . | . . . . . Unauthorized Hacks 8 | . 8 . . . Terminals 8 | . 8 . . . Botnet 3 | . 3 . . . Skim 5 | . 5 . . . Fabricators . | . . . . . Repair Stations . | . . . . . Recycling Units . | . . . . . Scanalyzers . | . . . . . Garrison Access . | . . . . . Data Cores Recovered . | . . . . . Used . | . . . . . Hacking Detections 4 | . 4 . . . Full Trace Events 1 | . 1 . . . Feedback Events 1 | . 1 . . . Corruption 1 | . 1 . . . Feedback Blocked . | . . . . . Robot Schematics Acquired . | . . . . . Robots Built . | . . . . . Authchips . | . . . . . Time . | . . . . . Total Robot Build Rating . | . . . . . Part Schematics Acquired . | . . . . . Parts Built . | . . . . . Authchips . | . . . . . Time . | . . . . . Total Part Build Rating . | . . . . . Part Studies Acquired . | . . . . . Parts Repaired . | . . . . . Time . | . . . . . Parts Recycled . | . . . . . Recycled Matter . | . . . . . Retrieved Matter . | . . . . . Retrieved Components . | . . . . . Parts Scanalyzed . | . . . . . Part Schematics Acquired . | . . . . . Parts Damaged . | . . . . . Bothacking | -11 -10 -10 -10 -7 ------------ Run | Yrd Mat Min Sub Scr Used RIF Installer . | . . . . . Robots Hacked . | . . . . . Non-combat . | . . . . . Combat . | . . . . . Robot Hacks Applied . | . . . . . Relay Couplers Released . | . . . . . Fabnet Peak Effective % . | . . . . . Robots Rewired . | . . . . . Allies Hacked . | . . . . . Hacks Repelled . | . . . . . Allies | -11 -10 -10 -10 -7 -------- Run | Yrd Mat Min Sub Scr Total Allies 2 | . . . 1 1 Largest Group 1 | . . . 1 1 Highest-Rated Group 446 | . . . 57 446 Highest-Rated Ally 446 | . . . 57 446 Total Orders . | . . . . . Ally Attacks 27 | . . . 9 18 Total Damage 1176 | . . . 277 899 Kills 9 | . . . 3 6 Allies Corrupted . | . . . . . Allies Melted . | . . . . . X0-1V1 Amusement Gains 92 | . 3 20 7 62 Good Acts 24 | . 1 1 22 . Bad Acts 20 | . 4 1 14 1 Intel | -11 -10 -10 -10 -7 ------- Run | Yrd Mat Min Sub Scr Active Infowar (turns) 951 | 71 542 . 257 81 Structural 81 | . . . . 81 Seismic 870 | 71 542 . 257 . Robot Analysis Total . | . . . . . Derelict Logs Recovered 7 | . . 1 1 5 Drone Launches . | . . . . . Drone Recoveries . | . . . . . Exploration | -11 -10 -10 -10 -7 ------------- Run | Yrd Mat Min Sub Scr Turns Passed 5067 | 155 1042 174 1720 1976 Spaces Moved 2874 | 74 453 92 1024 1231 Core 40 | 9 . . . 31 Treads 827 | 65 381 . 171 210 Legs 172 | . 72 92 8 . Wheels 1341 | . . . 845 496 Hover 45 | . . . . 45 Flight 449 | . . . . 449 Fastest Speed 32 | 50 160 190 115 32 Average Speed 153 | 146 164 190 138 157 Slowest Speed 995 | 160 190 190 360 995 Overloaded Moves 7 | . . . . 7 Propulsion Burnouts . | . . . . . Robots Hopped . | . . . . . Potential Cave-ins . | . . . . . Cave-ins Triggered . | . . . . . Exploration Rate (%) 52 | 5 85 30 61 82 Regions Visited 4 Branch Regions 3 Pre-discovered Areas 11 | . 1 . 2 8 Known Exits Taken . | . . . . . Unknown Exits Taken 4 | 1 1 1 1 . Scrap Searched 20 | . . 1 11 8 Spaces Dug 1 | . . . 1 . Terrain Destroyed 8 | . . . 8 . Melee . | . . . . . Projectile 8 | . . . 8 . AOE . | . . . . . Terrain Rammed . | . . . . . Walls Destroyed . | . . . . . Machines Disabled . | . . . . . Actions | -11 -10 -10 -10 -7 --------- Run | Yrd Mat Min Sub Scr Total 3340 | 105 662 92 1210 1271 Wait 172 | . 144 . 28 . Move 2870 | 73 452 91 1023 1231 Hop . | . . . . . Pick Up 69 | 15 10 1 36 7 Fast Attach 5 | . . . 3 2 Attach 31 | 7 4 . 17 3 Detach 4 | . . . . 4 Swap 19 | . 4 . 11 4 Drop 45 | 1 1 . 23 20 Fire 117 | 9 46 . 62 . Melee 7 | . . . 7 . Ram . | . . . . . Kick . | . . . . . Crush 1 | . 1 . . . Escape Stasis . | . . . . . Rewire . | . . . . . Trap . | . . . . . Miscellaneous . | . . . . . Route ------- -11/Scrapyard -10/Materials (discovered 5 exits: [*Mat x3] / [*Min] / *Sub) -10/Mines -10/Subcaves (discovered 4 exits: *Mat x2 / Rec / *Scr) -7/Scraptown (discovered 2 exits: *Fac x2) History --------- Turn | Location | Event 2 | -11/Scrapyard | Met Revision 17 23 | -11/Scrapyard | Discovered new exit (range 15) 156 | -11/Scrapyard | Entered Materials 310 | -10/Materials | Build established: Mutant 417 | -10/Materials | Discovered new exit (range 3) 543 | -10/Materials | Discovered new exit (range 15) 728 | -10/Materials | Discovered new exit (range 5) 779 | -10/Materials | Prayed at D.C.S.S. Altar Unit 844 | -10/Materials | Discovered new exit (range 6) 928 | -10/Materials | Discovered new exit (range 13) 959 | -10/Materials | X0-1V1 upgraded hostiles (x1) 1006 | -10/Materials | X0-1V1 sent hostile G-34 Mercenary (x3) 1040 | -10/Materials | Core integrity fell below 50% 1046 | -10/Materials | Learned location of Recycling (-7) 1053 | -10/Materials | X0-1V1 whisked you away to safety 1068 | -10/Materials | Lost 3 parts (1p1n1w) 1110 | -10/Materials | Learned Storage security intel 1165 | -10/Materials | Learned location of 2 exits from Subcaves 1198 | -10/Materials | Entered Mines 1253 | -10/Mines | Met a Derelict bent on vengeance 1319 | -10/Mines | Core integrity permanently improved by X0-1V1 (+300) 1341 | -10/Mines | Assembled infested the area 1369 | -10/Mines | Discovered new exit (range 3) 1372 | -10/Mines | Entered Subcaves 1373 | -10/Subcaves | Approached by a straggling Scientist 1373 | -10/Subcaves | Identified exit to Materials 1373 | -10/Subcaves | Identified exit to Recycling 1428 | -10/Subcaves | Lost 4 parts (1p1n2w) 1570 | -10/Subcaves | Scientist uncovered a shortcut to Scraptown 1629 | -10/Subcaves | Disturbed a concealed Subdweller 1730 | -10/Subcaves | System corruption reached 10% 1930 | -10/Subcaves | A swath of the cavern ceiling suddenly collapsed 1998 | -10/Subcaves | X0-1V1 sent hostile S-10 Pest (x4) 2034 | -10/Subcaves | Lost 4 parts (2n2w) 2222 | -10/Subcaves | X0-1V1 mutated your Weapon slot to Utility slot 2233 | -10/Subcaves | Visited 4L-MR0's lab 2246 | -10/Subcaves | Found Prototype Device 2246 | -10/Subcaves | Identified Sfc. Transmogrifier 2339 | -10/Subcaves | A swath of the cavern ceiling suddenly collapsed 2343 | -10/Subcaves | Sensors blinded by X0-1V1 2373 | -10/Subcaves | Visited Clippyterm 2377 | -10/Subcaves | Learned Research security intel 2377 | -10/Subcaves | Learned location of Extension (-5) 2716 | -10/Subcaves | X0-1V1 sent hostile G-34 Mercenary (x3) 2746 | -10/Subcaves | Core integrity fell below 20% 2762 | -10/Subcaves | Core integrity restored by X0-1V1 (+99) 2774 | -10/Subcaves | Ranged accuracy permanently improved by X0-1V1 (+6%; -60 max core) 2782 | -10/Subcaves | X0-1V1 mutated your Propulsion slot to Weapon slot 2811 | -10/Subcaves | X0-1V1 activates XOMVISION 2833 | -10/Subcaves | X0-1V1 whisked you away to safety 2873 | -10/Subcaves | Learned location of Zion (-6) 2873 | -10/Subcaves | Met a Zionite searching for "candidates" 2904 | -10/Subcaves | Core integrity restored by X0-1V1 (+112) 2921 | -10/Subcaves | X0-1V1 sent hostile S-10 Pest (x4) 2927 | -10/Subcaves | Weapon slot count temporarily expanded by X0-1V1 (+3) 2938 | -10/Subcaves | X0-1V1 sent allied Chaos Knight (x1) 2968 | -10/Subcaves | Core integrity restored by X0-1V1 (+137) 3012 | -10/Subcaves | A Subdweller sparked back to life 3012 | -10/Subcaves | A Subdweller sparked back to life 3012 | -10/Subcaves | A Subdweller sparked back to life 3045 | -10/Subcaves | Found Meta Core 3071 | -10/Subcaves | Core integrity restored by X0-1V1 (+122) 3092 | -10/Subcaves | Entered Scraptown 3474 | -7/Scraptown | Heard Great Nut preacher, LISTEN AND RECITE! 3539 | -7/Scraptown | Visited Bundlers 3795 | -7/Scraptown | Scanned Subdweller tech in exchange for log data 3809 | -7/Scraptown | Learned location of Warlord (-4) 3961 | -7/Scraptown | Discovered new exit (range 13) 4098 | -7/Scraptown | Visited IN-MT5's Study 4118 | -7/Scraptown | Visited Junk Repository 4191 | -7/Scraptown | Visited UFD Registry 4191 | -7/Scraptown | Registered with UFD as "Novanuts" 4242 | -7/Scraptown | Visited Abandonware Association 4251 | -7/Scraptown | Learned abandonware demo "OVRCLOCK.EXE" 4255 | -7/Scraptown | Learned abandonware demo "TRNCOAT.EXE" 4283 | -7/Scraptown | Visited Supply Room 4309 | -7/Scraptown | Visited Curators Association 4375 | -7/Scraptown | Delivered Scrap Shield to a Scientist 4430 | -7/Scraptown | Visited Scrapoid Research Area 4448 | -7/Scraptown | Visited Scrap Suit Storage 4485 | -7/Scraptown | Visited Junk Repository 4523 | -7/Scraptown | Visited A0-MCA Data Center 4544 | -7/Scraptown | Visited Supply Room 4568 | -7/Scraptown | Visited Cartography Club 4795 | -7/Scraptown | Learned location of Proximity Caves (-5) 4795 | -7/Scraptown | Learned location of Armory (-4) 4795 | -7/Scraptown | Learned location of Quarantine (-2) 4795 | -7/Scraptown | Learned 16 Materials zone layouts 4795 | -7/Scraptown | Learned 16 Research zone layouts 4795 | -7/Scraptown | Learned 4 Recycling zone layouts 4795 | -7/Scraptown | Learned 16 Upper Caves zone layouts 4795 | -7/Scraptown | Learned 20 Proximity Caves zone layouts 4795 | -7/Scraptown | Learned 24 Proximity Caves zone layouts 4795 | -7/Scraptown | Learned location of 1 exit from Research 4795 | -7/Scraptown | Learned location of 2 exits from Lower Caves 4795 | -7/Scraptown | Learned location of 3 exits from Upper Caves 4795 | -7/Scraptown | Identified exit to Factory 4806 | -7/Scraptown | Found Deep Structural Scanner 5022 | -7/Scraptown | Visited TADAMA 5040 | -7/Scraptown | Visited Shadow of the Wyrm 5044 | -7/Scraptown | X0-1V1 brought Wyrm Statue to life 5044 | -7/Scraptown | Attacked by Scraptown defenders 5068 | -7/Scraptown | Destroyed by 9J-M7U(j) with Overtuned Pulse Rifle Last Messages --------------- 05052_ Penetrated by Siege Slug. 05052_ Surge Thruster destroyed. 05052_ Penetrated by Bolt. 05054_ Penetrated by Siege Slug. 05054_ Knocked back. 05057_ Slug penetrates DC-TKC(j). 05057_ X0-1V1's Piety Tracker destroyed. 05057_ X0-1V1 is mildly amused. 05058_ Bolt penetrates Wall. 05059_ Penetrated by Bolt. 05060_ Penetrated by Slug. 05064_ KP-Q3S(r) follow-up attacks with Ripteeth. 05064_ Penetrated by Bolt. 05065_ Penetrated by Slug. 05065_ Deep Structural Scanner destroyed. 05067_ X0-1V1 wants to heat up the action around here (+314 heat). 05067_ Penetrated by Bolt. 05068_ X0-1V1 howls with laughter! Map ----- +----------------------------------------------------+ | " "????#"""""""#???????# #?#" "#" ?? "? | | " "#???#"" ""#???????# #?#" """ "? | | "#???#"" ""#???????# #?#" "#" "" "# | | """###?#""" ""#???????# #?#" """ "#" " "# | | #?#"" ""#??????## ###" "#" "# | | ###""" """######## ##"""""" ""#"" """"""# | | # | | # | | # | | ###### ########### ##########"" """"##### | | #????# #?????????## E##????????#" "#???? | | #????" "?????##???#]] #########?#" !""#???? | | #??? " " ???? ??#[[[""""""""#?#" """#???? | | "" ""#??" "??### ###m[ " ""#?#" """#???? | | "" "#? " " ?#"" """ "#?#"""""""#???? | | "" "#?"""" """"?#" """k " ""#?#########???? | | " "#???## ##???#" "k """"""""#?????????????? | | "#????? ?????#" g##"""####?????????????? | | "" ""#????? ?????#" "" "jkc############??????????? | | ## ###????? ?????#" " #????#"""""""?????????? | | ?# ??????? ?????#"""""" p#????" " "?????????? | | ?###??????? ?????####### c #??###" "#????????? | | ??????????? ????????#### #??# " ""########## | | ###########?############c #??# " """##=]#!/=#/ | | j #### " ""##]!# [ #! | | @ #### " "## # # | | ###########?############rjh####""" "## | | ????????????########### h #### ## | | ######??????############ ########## ##### ###### | | """""#?????#"""""""""# | | "#?????#" # | | ! "#?????#" # r | | !! "#??????? """ | | ]=! "#??????? """ # h g | | !!! "#???????? """ # j################# | | ! "#??????? # E####????????????# | | "#??????" # ####????????????# | | "#??????"""""""""# ####????#######?# | | "" ""#??????########## c ####????#######?# | | ## ################### ####????#######?# | | ## ################### #"""????#""####?# | | "" ""################# #"""??" X ####?# | | "################# #"" "#" X####?# | | "" "## #""" """ # #""""# ####?# | | "" "## #" " " " # #""""#"# #"####?# | | "## [| # | # ######## ######?# | | ""##!= # #" "###### | | """""##[ = # # #X "###### | | """""#### ## # #" "###### | | """""##""! # # ###### | +----------------------------------------------------+ Best States ------------- Heat Dissipation 25 Energy Generation 17 Energy Capacity 1365 Matter Stores 546 Matter Capacity 1000 Sight Range 20 Terrain Scan Density 10 Armor Coverage 800 Resistance: KI 29 Evasion (%) 63 Recoil Reduction 2 Item Schematics ----------------- None Robot Schematics ------------------ None Fabricated ------------ Nothing Repaired ---------- Nothing Studied --------- None Alien Tech Used ----------------- None Achievements -------------- None Challenges ------------ None Game ------ Seed GravmagJunkCore Manual? 0 Play Time 00:33:45 Cumulative 206.7 hours Start 2026.07.18 @ 16:06:37 End 2026.07.18 @ 17:56:04 Sessions 3 Manual Loads 0 Difficulty Rogue Special Mode None Game No. 291 Rogue 291 Adventurer 0 Explorer 0 Win Type - Total 3 Types 2/0/0/1/0/0/0/0/0/0 Lore% 74 Gallery% 69 Achievement% 56 Wizard Run 0 Options --------- Layout 1 ASCII 0 Keyboard 0 Movement Mouse Keybinds 0 Fullscreen 1 Font 24/Smallcaps Map View 50x35 Zoom Use 0% Tactical HUD 1 Map Filters NONE Filters NONE Steam 1 RUN: af976f4a-b921-44e5-8327-c21a68c88f51